[Event "Live Chess"]
[Site "Chess.com"]
[Date "2024.06.01"]
[Round "-"]
[White "peteopeteo"]
[Black "Ksenia_2013"]
[Result "1-0"]
[WhiteElo "1608"]
[BlackElo "768"]
[TimeControl "300"]
[EndTime "10:33:26 PDT"]
[Termination "peteopeteo won by checkmate"]

1. e4 {[%clk 0:04:59]} 1... e5 {[%clk 0:04:58.1]} 2. Nf3 {[%clk 0:04:58.3]} 2...
Nc6 {[%clk 0:04:54.8]} 3. Bc4 {[%clk 0:04:57.5]} 3... Bc5 {[%clk 0:04:52.8]} 4.
d4 {[%clk 0:04:56.2]} 4... exd4 {[%clk 0:04:51.4]} 5. c3 {[%clk 0:04:55.8]} 5...
dxc3 {[%clk 0:04:50.1]} 6. Bxf7+ {[%clk 0:04:55.5]} 6... Kf8 {[%clk 0:04:47.3]}
7. Nxc3 {[%clk 0:04:40.2]} 7... Kxf7 {[%clk 0:04:44.4]} 8. Qd5+ {[%clk
0:04:38.7]} 8... Kf8 {[%clk 0:04:41.7]} 9. Qxc5+ {[%clk 0:04:37.5]} 9... d6
{[%clk 0:04:32.6]} 10. Qe3 {[%clk 0:04:27.6]} 10... Qe8 {[%clk 0:04:27.2]} 11.
O-O {[%clk 0:04:26.1]} 11... Qg6 {[%clk 0:04:23.8]} 12. Qf4+ {[%clk 0:04:22.1]}
12... Ke8 {[%clk 0:04:18.7]} 13. Nd5 {[%clk 0:04:20.7]} 13... Bh3 {[%clk
0:04:14.4]} 14. Nh4 {[%clk 0:04:07.9]} 14... Bxg2 {[%clk 0:03:41.5]} 15. Nxg6
{[%clk 0:04:05.6]} 15... Bxf1 {[%clk 0:03:38.6]} 16. Nxh8 {[%clk 0:04:02.5]}
16... Bh3 {[%clk 0:03:33.4]} 17. Nxc7+ {[%clk 0:03:59.7]} 17... Kd8 {[%clk
0:03:31.3]} 18. Nxa8 {[%clk 0:03:58.1]} 18... Nd4 {[%clk 0:03:29.2]} 19. Qxd6+
{[%clk 0:03:57]} 19... Kc8 {[%clk 0:03:27.1]} 20. Qc7# {[%clk 0:03:53.4]} 1-0

[Event "Live Chess"]
[Site "Chess.com"]
[Date "2024.06.01"]
[Round "-"]
[White "ACM42"]
[Black "ALEX_UA_69"]
[Result "1-0"]
[WhiteElo "2220"]
[BlackElo "1775"]
[TimeControl "300"]
[EndTime "10:33:31 PDT"]
[Termination "ACM42 won by resignation"]

1. e4 {[%clk 0:04:59.3]} 1... e5 {[%clk 0:04:58.7]} 2. Nf3 {[%clk 0:04:58.3]}
2... Nc6 {[%clk 0:04:57]} 3. Bc4 {[%clk 0:04:57.5]} 3... Bc5 {[%clk 0:04:55.2]}
4. c3 {[%clk 0:04:56.8]} 4... d6 {[%clk 0:04:52.9]} 5. d4 {[%clk 0:04:56]} 5...
exd4 {[%clk 0:04:51.9]} 6. cxd4 {[%clk 0:04:48.2]} 6... Bb4+ {[%clk 0:04:51.1]}
7. Nc3 {[%clk 0:04:45.6]} 7... Nf6 {[%clk 0:04:46.9]} 8. O-O {[%clk 0:04:36.5]}
8... O-O {[%clk 0:04:38.8]} 9. Re1 {[%clk 0:04:20.3]} 9... Bg4 {[%clk
0:04:36.7]} 10. Bg5 {[%clk 0:04:08.6]} 10... Bxf3 {[%clk 0:04:30.7]} 11. gxf3
{[%clk 0:03:58.6]} 11... h6 {[%clk 0:04:26.6]} 12. Bh4 {[%clk 0:03:40.9]} 12...
g5 {[%clk 0:04:25]} 13. Bg3 {[%clk 0:03:39.7]} 13... Nh5 {[%clk 0:04:22.4]} 14.
a3 {[%clk 0:03:33.5]} 14... Bxc3 {[%clk 0:04:11.6]} 15. bxc3 {[%clk 0:03:32.3]}
15... Qf6 {[%clk 0:04:08.8]} 16. Rb1 {[%clk 0:03:27.2]} 16... Rab8 {[%clk
0:04:06.1]} 17. e5 {[%clk 0:03:08.8]} 17... dxe5 {[%clk 0:03:54.6]} 18. dxe5
{[%clk 0:03:07.4]} 18... Qf5 {[%clk 0:03:50]} 19. e6 {[%clk 0:03:06]} 19... Kg7
{[%clk 0:03:38.5]} 20. e7 {[%clk 0:02:24.1]} 20... Rfe8 {[%clk 0:03:29.8]} 21.
Bxc7 {[%clk 0:02:22.6]} 21... Rbc8 {[%clk 0:03:19.1]} 22. Rxb7 {[%clk
0:02:20.4]} 22... Rxe7 {[%clk 0:03:14.3]} 23. Rxe7 {[%clk 0:02:16.7]} 23... Nxe7
{[%clk 0:03:12.4]} 24. Qd4+ {[%clk 0:02:15.4]} 24... Qf6 {[%clk 0:02:39.2]} 25.
Be5 {[%clk 0:02:13.4]} 1-0

[Event "Live Chess"]
[Site "Chess.com"]
[Date "2024.06.01"]
[Round "-"]
[White "f4nomore"]
[Black "DarranAS"]
[Result "0-1"]
[WhiteElo "1204"]
[BlackElo "1467"]
[TimeControl "300"]
[EndTime "10:33:36 PDT"]
[Termination "DarranAS won by resignation"]

1. d4 {[%clk 0:04:55.7]} 1... d5 {[%clk 0:04:56.7]} 2. Nc3 {[%clk 0:04:54]} 2...
c6 {[%clk 0:04:55.4]} 3. Nf3 {[%clk 0:04:51.2]} 3... Bg4 {[%clk 0:04:51.9]} 4.
e3 {[%clk 0:04:49.5]} 4... Bxf3 {[%clk 0:04:49.8]} 5. Qxf3 {[%clk 0:04:47.6]}
5... Nd7 {[%clk 0:04:47.1]} 6. Be2 {[%clk 0:04:46.3]} 6... Ngf6 {[%clk
0:04:45.9]} 7. O-O {[%clk 0:04:44.7]} 7... e6 {[%clk 0:04:44.7]} 8. a3 {[%clk
0:04:43.6]} 8... c5 {[%clk 0:04:42.9]} 9. Nd1 {[%clk 0:04:35.3]} 9... cxd4
{[%clk 0:04:38.3]} 10. exd4 {[%clk 0:04:33.1]} 10... Rc8 {[%clk 0:04:37.9]} 11.
c3 {[%clk 0:04:31.6]} 11... a6 {[%clk 0:04:34.2]} 12. Bf4 {[%clk 0:04:25.6]}
12... b5 {[%clk 0:04:30.1]} 13. Bg3 {[%clk 0:04:23.8]} 13... Nb6 {[%clk
0:04:25]} 14. Ne3 {[%clk 0:04:21.2]} 14... Bd6 {[%clk 0:04:21.8]} 15. Bh4 {[%clk
0:04:13.9]} 15... Be7 {[%clk 0:04:12.2]} 16. Bg3 {[%clk 0:04:12]} 16... Nc4
{[%clk 0:04:06.3]} 17. Nxc4 {[%clk 0:04:09.2]} 17... bxc4 {[%clk 0:04:04.4]} 18.
Rab1 {[%clk 0:04:05.7]} 18... Ne4 {[%clk 0:03:57.8]} 19. b3 {[%clk 0:03:56.9]}
19... Nd2 {[%clk 0:03:55]} 20. Qg4 {[%clk 0:03:45.7]} 20... Bf6 {[%clk
0:03:39.9]} 21. bxc4 {[%clk 0:03:38.8]} 21... Nxf1 {[%clk 0:03:33.4]} 22. Bxf1
{[%clk 0:03:36.3]} 22... dxc4 {[%clk 0:03:26.7]} 23. Rb4 {[%clk 0:03:16.7]}
23... Qa5 {[%clk 0:03:19.2]} 24. Qf3 {[%clk 0:02:52.8]} 24... O-O {[%clk
0:03:10.7]} 25. Qb7 {[%clk 0:02:40.7]} 25... Qxa3 {[%clk 0:03:02.2]} 26. h3
{[%clk 0:02:34.1]} 26... Qxc3 {[%clk 0:02:57.5]} 27. Rb6 {[%clk 0:02:12.4]}
27... Bxd4 {[%clk 0:02:52.3]} 28. Rc6 {[%clk 0:02:02]} 28... Rxc6 {[%clk
0:02:41.7]} 29. Qxc6 {[%clk 0:01:59.7]} 29... Qxg3 {[%clk 0:02:37.9]} 30. Qxc4
{[%clk 0:01:50.2]} 30... Qxf2+ {[%clk 0:02:35.3]} 31. Kh2 {[%clk 0:01:45.7]}
31... Be5+ {[%clk 0:02:33]} 32. Kh1 {[%clk 0:01:40.8]} 32... Bd4 {[%clk
0:02:23.5]} 33. Kh2 {[%clk 0:01:31.9]} 33... g6 {[%clk 0:02:22.2]} 34. Qxa6
{[%clk 0:01:26.9]} 34... Rb8 {[%clk 0:02:13.8]} 35. Qe2 {[%clk 0:01:23.4]} 35...
Rb2 {[%clk 0:02:09.8]} 36. Qxf2 {[%clk 0:01:20.9]} 36... Rxf2 {[%clk 0:02:04.6]}
37. Bb5 {[%clk 0:01:18.2]} 37... e5 {[%clk 0:02:02.5]} 38. Bc6 {[%clk
0:01:16.1]} 38... f5 {[%clk 0:02:00.3]} 39. Kg3 {[%clk 0:01:12.7]} 39... e4
{[%clk 0:01:55.7]} 40. Bd5+ {[%clk 0:01:07.4]} 40... Kg7 {[%clk 0:01:53]} 41. h4
{[%clk 0:00:56.6]} 41... e3 {[%clk 0:01:50.6]} 42. h5 {[%clk 0:00:50.7]} 42...
f4+ {[%clk 0:01:45.2]} 43. Kh3 {[%clk 0:00:42.2]} 43... e2 {[%clk 0:01:43.5]}
44. hxg6 {[%clk 0:00:38.6]} 44... e1=Q {[%clk 0:01:39.8]} 0-1

[Event "Live Chess"]
[Site "Chess.com"]
[Date "2024.06.01"]
[Round "-"]
[White "Brooms1989"]
[Black "OliWally08"]
[Result "0-1"]
[WhiteElo "1061"]
[BlackElo "1263"]
[TimeControl "300"]
[EndTime "10:33:44 PDT"]
[Termination "OliWally08 won by resignation"]

1. e4 {[%clk 0:04:57.3]} 1... d5 {[%clk 0:04:59.5]} 2. exd5 {[%clk 0:04:55.9]}
2... Nf6 {[%clk 0:04:58.9]} 3. d4 {[%clk 0:04:52.7]} 3... Nxd5 {[%clk
0:04:57.5]} 4. c4 {[%clk 0:04:50.5]} 4... Nf6 {[%clk 0:04:56.5]} 5. Nf3 {[%clk
0:04:44.5]} 5... Bg4 {[%clk 0:04:54.7]} 6. Be2 {[%clk 0:04:42.8]} 6... Nc6
{[%clk 0:04:52.8]} 7. h3 {[%clk 0:04:40.4]} 7... Bh5 {[%clk 0:04:34.9]} 8. O-O
{[%clk 0:04:23.6]} 8... e6 {[%clk 0:04:32.6]} 9. Be3 {[%clk 0:03:53.8]} 9... Bd6
{[%clk 0:04:20.2]} 10. c5 {[%clk 0:03:48.7]} 10... Be7 {[%clk 0:04:17.2]} 11.
Nc3 {[%clk 0:03:44.4]} 11... O-O {[%clk 0:04:06.5]} 12. Nh2 {[%clk 0:03:26.4]}
12... Bxe2 {[%clk 0:04:04.3]} 13. Qxe2 {[%clk 0:03:26.3]} 13... Nd5 {[%clk
0:04:00.3]} 14. Nxd5 {[%clk 0:03:22.5]} 14... Qxd5 {[%clk 0:03:57.3]} 15. Rfd1
{[%clk 0:02:57.9]} 15... Bf6 {[%clk 0:03:55.3]} 16. Nf3 {[%clk 0:02:52.5]} 16...
Rad8 {[%clk 0:03:48.7]} 17. Ne5 {[%clk 0:02:28.7]} 17... Nxe5 {[%clk 0:03:40.2]}
18. dxe5 {[%clk 0:02:27.4]} 18... Qxe5 {[%clk 0:03:38.4]} 19. Rxd8 {[%clk
0:02:17]} 19... Rxd8 {[%clk 0:03:37.9]} 20. Rd1 {[%clk 0:02:13.6]} 20... Rxd1+
{[%clk 0:03:32.5]} 21. Qxd1 {[%clk 0:02:13.5]} 21... Qxb2 {[%clk 0:03:28.4]} 22.
Bg5 {[%clk 0:02:08.9]} 22... Bxg5 {[%clk 0:03:23.8]} 0-1

[Event "Live Chess"]
[Site "Chess.com"]
[Date "2024.06.01"]
[Round "-"]
[White "matt1979"]
[Black "kylet1990"]
[Result "1-0"]
[WhiteElo "1361"]
[BlackElo "724"]
[TimeControl "300"]
[EndTime "10:33:46 PDT"]
[Termination "matt1979 won by resignation"]

1. f4 {[%clk 0:04:59]} 1... c6 {[%clk 0:04:56.4]} 2. Nf3 {[%clk 0:04:57.5]} 2...
d5 {[%clk 0:04:54.4]} 3. e3 {[%clk 0:04:56.6]} 3... Bf5 {[%clk 0:04:51.6]} 4. d3
{[%clk 0:04:51.4]} 4... e6 {[%clk 0:04:50.2]} 5. b3 {[%clk 0:04:49.7]} 5... Nf6
{[%clk 0:04:46.9]} 6. Bb2 {[%clk 0:04:47.6]} 6... c5 {[%clk 0:04:40.6]} 7. Ne5
{[%clk 0:04:43.6]} 7... Nc6 {[%clk 0:04:31.6]} 8. Be2 {[%clk 0:04:38.7]} 8...
Nxe5 {[%clk 0:04:27.6]} 9. Bxe5 {[%clk 0:04:35.6]} 9... Bd6 {[%clk 0:04:22]} 10.
Bb2 {[%clk 0:04:30.1]} 10... O-O {[%clk 0:04:16.4]} 11. O-O {[%clk 0:04:28.1]}
11... h5 {[%clk 0:03:48.3]} 12. Qe1 {[%clk 0:04:24.5]} 12... g6 {[%clk
0:03:43.4]} 13. Qh4 {[%clk 0:04:21.7]} 13... Ng4 {[%clk 0:03:36]} 14. Qg3 {[%clk
0:04:08.7]} 14... d4 {[%clk 0:03:20.9]} 15. e4 {[%clk 0:04:00.2]} 15... Bxe4
{[%clk 0:03:09.2]} 16. dxe4 {[%clk 0:03:56.6]} 16... Ne3 {[%clk 0:03:02.5]} 17.
Na3 {[%clk 0:03:36.6]} 17... Nxf1 {[%clk 0:02:55.6]} 18. Rxf1 {[%clk 0:03:35.1]}
18... Qf6 {[%clk 0:02:39.5]} 19. Bxh5 {[%clk 0:03:31.5]} 19... Kg7 {[%clk
0:02:32.9]} 20. e5 {[%clk 0:03:27.2]} 20... Bxe5 {[%clk 0:02:23.4]} 21. fxe5
{[%clk 0:03:22.7]} 21... Qe7 {[%clk 0:02:16.5]} 22. Bc1 {[%clk 0:03:11.7]} 22...
c4 {[%clk 0:02:07.4]} 23. Nxc4 {[%clk 0:03:06.5]} 23... Qc5 {[%clk 0:01:51.4]}
24. Ba3 {[%clk 0:02:59.6]} 24... d3+ {[%clk 0:01:40.2]} 25. Bxc5 {[%clk
0:02:57.4]} 25... dxc2 {[%clk 0:01:36.9]} 1-0

[Event "Live Chess"]
[Site "Chess.com"]
[Date "2024.06.01"]
[Round "-"]
[White "Crowded_House"]
[Black "FlyingChessKestrel13"]
[Result "1/2-1/2"]
[WhiteElo "1756"]
[BlackElo "2097"]
[TimeControl "300"]
[EndTime "10:33:46 PDT"]
[Termination "Game drawn by agreement"]

1. d4 {[%clk 0:04:57.2]} 1... d5 {[%clk 0:04:59.1]} 2. Bf4 {[%clk 0:04:55.9]}
2... Nf6 {[%clk 0:04:56.6]} 3. e3 {[%clk 0:04:54.3]} 3... c5 {[%clk 0:04:56.1]}
4. dxc5 {[%clk 0:04:51.2]} 4... Nc6 {[%clk 0:04:54.7]} 5. c3 {[%clk 0:04:50.2]}
5... e5 {[%clk 0:04:53.6]} 6. Bg3 {[%clk 0:04:48.3]} 6... Bxc5 {[%clk
0:04:52.7]} 7. Nf3 {[%clk 0:04:44.4]} 7... Bg4 {[%clk 0:04:50.7]} 8. Be2 {[%clk
0:04:42.6]} 8... O-O {[%clk 0:04:49.2]} 9. Nxe5 {[%clk 0:04:39.5]} 9... Nxe5
{[%clk 0:04:44.7]} 10. Bxe5 {[%clk 0:04:37.3]} 10... Bxe2 {[%clk 0:04:43.8]} 11.
Qxe2 {[%clk 0:04:36.7]} 11... Qe7 {[%clk 0:04:43]} 12. Bxf6 {[%clk 0:04:34]}
12... Qxf6 {[%clk 0:04:42]} 13. O-O {[%clk 0:04:28.7]} 13... Rfe8 {[%clk
0:04:39.9]} 14. Qd3 {[%clk 0:04:23.6]} 14... Qe5 {[%clk 0:04:36.7]} 15. Nd2
{[%clk 0:04:17.4]} 15... Bd6 {[%clk 0:04:33.2]} 16. Nf3 {[%clk 0:04:15.7]} 16...
Qe6 {[%clk 0:04:30.1]} 17. Ng5 {[%clk 0:04:11]} 17... Qh6 {[%clk 0:04:23.6]} 18.
Nf3 {[%clk 0:04:04.1]} 18... Rad8 {[%clk 0:04:19.8]} 19. Qf5 {[%clk 0:03:51.9]}
19... g6 {[%clk 0:04:16.1]} 20. Qg5 {[%clk 0:03:47.7]} 20... Bxh2+ {[%clk
0:04:05.6]} 21. Kh1 {[%clk 0:03:39.8]} 21... Qxg5 {[%clk 0:04:03.9]} 22. Nxg5
{[%clk 0:03:37.9]} 22... Bc7 {[%clk 0:03:59.6]} 23. Rfd1 {[%clk 0:03:33.1]}
23... h6 {[%clk 0:03:39.1]} 24. Nf3 {[%clk 0:03:29.6]} 24... f5 {[%clk
0:03:36.5]} 25. Rd4 {[%clk 0:03:12.8]} 25... Bb6 {[%clk 0:03:31.8]} 26. Rd3
{[%clk 0:03:08.3]} 26... g5 {[%clk 0:03:28.8]} 27. Rad1 {[%clk 0:03:04.5]} 27...
g4 {[%clk 0:03:27.9]} 28. Nd4 {[%clk 0:02:55.4]} 28... Re5 {[%clk 0:03:26.7]}
29. Nb3 {[%clk 0:02:45.4]} 29... Kf7 {[%clk 0:03:23.1]} 30. Nd2 {[%clk
0:02:35.9]} 30... Ree8 {[%clk 0:03:16.6]} 31. Nb3 {[%clk 0:02:33.4]} 31... Ke6
{[%clk 0:03:14.6]} 32. Nd4+ {[%clk 0:02:31]} 32... Bxd4 {[%clk 0:03:13.7]} 33.
Rxd4 {[%clk 0:02:29.9]} 33... b5 {[%clk 0:03:10.8]} 34. b3 {[%clk 0:02:20.4]}
34... Rc8 {[%clk 0:02:54.1]} 35. Rxd5 {[%clk 0:02:16.7]} 35... Rxc3 {[%clk
0:02:53.1]} 36. Rd6+ {[%clk 0:02:14.8]} 1/2-1/2

[Event "Live Chess"]
[Site "Chess.com"]
[Date "2024.06.01"]
[Round "-"]
[White "NottheBishopSacrifice"]
[Black "jimwad"]
[Result "1-0"]
[WhiteElo "2219"]
[BlackElo "1241"]
[TimeControl "300"]
[EndTime "10:34:25 PDT"]
[Termination "NottheBishopSacrifice won by resignation"]

1. d4 {[%clk 0:04:58.4]} 1... d5 {[%clk 0:04:58.8]} 2. c4 {[%clk 0:04:58.3]}
2... c6 {[%clk 0:04:57.2]} 3. Nf3 {[%clk 0:04:57.9]} 3... Nf6 {[%clk 0:04:55.9]}
4. e3 {[%clk 0:04:57.6]} 4... Bg4 {[%clk 0:04:53.1]} 5. Be2 {[%clk 0:04:57.1]}
5... e6 {[%clk 0:04:51.6]} 6. O-O {[%clk 0:04:54.9]} 6... Be7 {[%clk 0:04:48.5]}
7. b3 {[%clk 0:04:54.5]} 7... O-O {[%clk 0:04:46.1]} 8. Bb2 {[%clk 0:04:54.1]}
8... Nbd7 {[%clk 0:04:44.3]} 9. Nbd2 {[%clk 0:04:53.6]} 9... a6 {[%clk
0:04:37.8]} 10. h3 {[%clk 0:04:52.6]} 10... Bh5 {[%clk 0:04:36.3]} 11. Rc1
{[%clk 0:04:49.9]} 11... c5 {[%clk 0:04:32.3]} 12. cxd5 {[%clk 0:04:47.5]} 12...
Nxd5 {[%clk 0:04:29.9]} 13. Nc4 {[%clk 0:04:44.1]} 13... b5 {[%clk 0:04:26.4]}
14. Nce5 {[%clk 0:04:43.2]} 14... Nxe5 {[%clk 0:04:23.9]} 15. Nxe5 {[%clk
0:04:43.1]} 15... Bxe2 {[%clk 0:04:22.2]} 16. Qxe2 {[%clk 0:04:43]} 16... Bf6
{[%clk 0:04:16.4]} 17. Rxc5 {[%clk 0:04:40]} 17... Rc8 {[%clk 0:04:11.8]} 18.
Rxc8 {[%clk 0:04:38.1]} 18... Qxc8 {[%clk 0:04:10.7]} 19. Rc1 {[%clk 0:04:37.7]}
19... Qb7 {[%clk 0:04:02.8]} 20. Nd3 {[%clk 0:04:37.2]} 20... Rc8 {[%clk
0:04:00.6]} 21. Nc5 {[%clk 0:04:35.7]} 21... Qb8 {[%clk 0:03:55.4]} 22. e4
{[%clk 0:04:32.7]} 22... Ne7 {[%clk 0:03:50.4]} 23. Nd7 {[%clk 0:04:29]} 23...
Rxc1+ {[%clk 0:03:47.8]} 24. Bxc1 {[%clk 0:04:28.9]} 24... Qd6 {[%clk
0:03:34.6]} 25. Nxf6+ {[%clk 0:04:26.2]} 25... gxf6 {[%clk 0:03:32.3]} 26. Qg4+
{[%clk 0:04:25.8]} 26... Ng6 {[%clk 0:03:29.6]} 27. Be3 {[%clk 0:04:23.6]} 27...
Qa3 {[%clk 0:03:27.1]} 28. h4 {[%clk 0:04:22.5]} 28... Kf8 {[%clk 0:03:18.6]}
29. h5 {[%clk 0:04:21.6]} 29... Ne7 {[%clk 0:03:16.1]} 30. Bh6+ {[%clk 0:04:20]}
30... Ke8 {[%clk 0:03:13.3]} 31. Qf4 {[%clk 0:04:18.8]} 31... Qa5 {[%clk
0:03:03.1]} 32. Qb8+ {[%clk 0:04:16.9]} 32... Qd8 {[%clk 0:03:02]} 33. Qa7
{[%clk 0:04:08.7]} 33... a5 {[%clk 0:02:57.3]} 34. Qc5 {[%clk 0:04:05.6]} 34...
b4 {[%clk 0:02:53.7]} 35. Bg7 {[%clk 0:04:00.5]} 35... f5 {[%clk 0:02:50.7]} 36.
exf5 {[%clk 0:03:58.4]} 36... Nxf5 {[%clk 0:02:49.5]} 37. Qc6+ {[%clk
0:03:55.6]} 37... Qd7 {[%clk 0:02:43.7]} 38. Qxd7+ {[%clk 0:03:53.5]} 38... Kxd7
{[%clk 0:02:42.7]} 39. h6 {[%clk 0:03:53.2]} 39... Nxd4 {[%clk 0:02:40.5]} 40.
Bxd4 {[%clk 0:03:51.5]} 40... Kc6 {[%clk 0:02:36.8]} 41. Kf1 {[%clk 0:03:50.8]}
41... Kb5 {[%clk 0:02:36]} 42. Ke2 {[%clk 0:03:49.4]} 42... a4 {[%clk
0:02:35.3]} 43. Kd3 {[%clk 0:03:48.6]} 43... axb3 {[%clk 0:02:34.1]} 44. axb3
{[%clk 0:03:48.2]} 44... Kc6 {[%clk 0:02:30]} 45. Ke4 {[%clk 0:03:47.8]} 45...
Kd6 {[%clk 0:02:25.4]} 46. Be3 {[%clk 0:03:46.7]} 46... f5+ {[%clk 0:02:22.7]}
47. Kf4 {[%clk 0:03:46.3]} 47... Kd5 {[%clk 0:02:20.7]} 48. Bd2 {[%clk 0:03:45]}
48... Kd4 {[%clk 0:02:13.2]} 49. Bxb4 {[%clk 0:03:42.3]} 49... Kd5 {[%clk
0:02:11]} 50. Bf8 {[%clk 0:03:41.6]} 50... Kd4 {[%clk 0:02:09]} 51. b4 {[%clk
0:03:41.5]} 51... Kc4 {[%clk 0:02:07.8]} 52. b5 {[%clk 0:03:41.4]} 52... Kxb5
{[%clk 0:02:07]} 53. Ke5 {[%clk 0:03:41.3]} 53... Kc6 {[%clk 0:02:05.4]} 54.
Kxe6 {[%clk 0:03:41.2]} 54... f4 {[%clk 0:02:04]} 55. Kf5 {[%clk 0:03:41.1]}
55... f3 {[%clk 0:02:01.9]} 56. Kf6 {[%clk 0:03:41]} 56... Kd5 {[%clk
0:02:00.5]} 57. gxf3 {[%clk 0:03:39]} 57... Kc6 {[%clk 0:01:53.2]} 58. Kg7
{[%clk 0:03:38.4]} 1-0

[Event "Live Chess"]
[Site "Chess.com"]
[Date "2024.06.01"]
[Round "-"]
[White "StoreySniper"]
[Black "Frankie_Badacsonyi"]
[Result "1-0"]
[WhiteElo "2549"]
[BlackElo "2435"]
[TimeControl "300"]
[EndTime "10:34:28 PDT"]
[Termination "StoreySniper won by resignation"]

1. e4 {[%clk 0:04:57.8]} 1... c6 {[%clk 0:04:58.8]} 2. Nc3 {[%clk 0:04:55.7]}
2... d5 {[%clk 0:04:58.3]} 3. Nf3 {[%clk 0:04:54]} 3... Bg4 {[%clk 0:04:55.7]}
4. d3 {[%clk 0:04:52.1]} 4... e6 {[%clk 0:04:52.6]} 5. Be2 {[%clk 0:04:48.3]}
5... dxe4 {[%clk 0:04:47.3]} 6. Nxe4 {[%clk 0:04:46.5]} 6... Nd7 {[%clk
0:04:42.5]} 7. Bd2 {[%clk 0:04:41.2]} 7... Ngf6 {[%clk 0:04:41.5]} 8. Bc3 {[%clk
0:04:39.8]} 8... Be7 {[%clk 0:04:38.2]} 9. h3 {[%clk 0:04:34.7]} 9... Bxf3
{[%clk 0:04:36.9]} 10. Bxf3 {[%clk 0:04:33.7]} 10... Nxe4 {[%clk 0:04:34.6]} 11.
Bxe4 {[%clk 0:04:29.8]} 11... Bf6 {[%clk 0:04:33.7]} 12. Qd2 {[%clk 0:04:20.7]}
12... Bxc3 {[%clk 0:04:27.6]} 13. Qxc3 {[%clk 0:04:19.6]} 13... Nf6 {[%clk
0:04:25.8]} 14. Bf3 {[%clk 0:04:14.3]} 14... Qd6 {[%clk 0:04:17.6]} 15. O-O
{[%clk 0:04:12.8]} 15... O-O {[%clk 0:04:16.3]} 16. Rfe1 {[%clk 0:04:11.3]}
16... Rad8 {[%clk 0:04:12.8]} 17. Qb3 {[%clk 0:04:08.1]} 17... Rd7 {[%clk
0:04:07]} 18. a4 {[%clk 0:04:05.9]} 18... Rfd8 {[%clk 0:04:00.4]} 19. a5 {[%clk
0:04:04.3]} 19... g6 {[%clk 0:03:42.3]} 20. Ra4 {[%clk 0:03:57.1]} 20... Nd5
{[%clk 0:03:28.8]} 21. Bxd5 {[%clk 0:03:47.1]} 21... Qxd5 {[%clk 0:03:23.6]} 22.
Qc3 {[%clk 0:03:40.4]} 22... a6 {[%clk 0:03:11.6]} 23. Ree4 {[%clk 0:03:35.3]}
23... h5 {[%clk 0:03:04.7]} 24. Rf4 {[%clk 0:03:31.4]} 24... Qd6 {[%clk
0:02:43.3]} 25. Rf3 {[%clk 0:03:28.6]} 25... Qf8 {[%clk 0:02:38]} 26. Raf4
{[%clk 0:03:26.5]} 26... Qg7 {[%clk 0:02:35.6]} 27. Qb4 {[%clk 0:03:18.3]} 27...
Qf8 {[%clk 0:02:26.2]} 28. Qb3 {[%clk 0:03:14.6]} 28... Qg7 {[%clk 0:01:59.4]}
29. Rf6 {[%clk 0:03:07.7]} 29... Re7 {[%clk 0:01:45.7]} 30. Qb4 {[%clk
0:03:03.1]} 30... Rdd7 {[%clk 0:01:44.9]} 31. Qf4 {[%clk 0:02:55.9]} 31... Kh7
{[%clk 0:01:28.5]} 32. g4 {[%clk 0:02:48.4]} 32... e5 {[%clk 0:01:22.1]} 33. Qg5
{[%clk 0:02:41]} 33... Qh6 {[%clk 0:01:15.3]} 34. Qh4 {[%clk 0:02:21.7]} 34...
hxg4 {[%clk 0:01:06.8]} 35. Qxg4 {[%clk 0:02:18.9]} 35... Kg7 {[%clk 0:00:58.4]}
36. Qc4 {[%clk 0:01:46.2]} 36... Qg5+ {[%clk 0:00:49.4]} 37. Kf1 {[%clk
0:01:45.3]} 37... e4 {[%clk 0:00:32]} 38. Qc3 {[%clk 0:01:26.6]} 38... Kg8
{[%clk 0:00:19.5]} 39. R3f4 {[%clk 0:01:17.7]} 39... exd3 {[%clk 0:00:18.4]} 40.
cxd3 {[%clk 0:01:16.8]} 40... Qe5 {[%clk 0:00:15.6]} 41. Qxe5 {[%clk 0:01:13.3]}
41... Rxe5 {[%clk 0:00:15.5]} 42. b4 {[%clk 0:01:01.3]} 42... Red5 {[%clk
0:00:15.1]} 43. Ke2 {[%clk 0:00:56.4]} 43... Kg7 {[%clk 0:00:14.7]} 44. h4
{[%clk 0:00:54.1]} 44... Re7+ {[%clk 0:00:14.2]} 45. Kd2 {[%clk 0:00:52.9]}
45... Rde5 {[%clk 0:00:13.2]} 46. Kc3 {[%clk 0:00:51.9]} 46... R5e6 {[%clk
0:00:12.6]} 47. Rxe6 {[%clk 0:00:51.1]} 47... Rxe6 {[%clk 0:00:12]} 48. Rd4
{[%clk 0:00:47.9]} 48... Kf6 {[%clk 0:00:11]} 49. Rf4+ {[%clk 0:00:42.3]} 49...
Ke7 {[%clk 0:00:10.3]} 50. Kd4 {[%clk 0:00:32.7]} 50... Rd6+ {[%clk 0:00:08.7]}
51. Kc4 {[%clk 0:00:28.1]} 51... Rf6 {[%clk 0:00:07.7]} 52. Rxf6 {[%clk
0:00:22.1]} 52... Kxf6 {[%clk 0:00:07.3]} 53. Kc5 {[%clk 0:00:21.8]} 1-0